bitfinex-derivatives/quotes_ETHF0:USTF0_20250504
["timestamp","ask_amount","ask_price","bid_price","bid_amount"]
[1746369488448,15.16665768,1831.1,1831.0,2.5887]
[1746369489254,15.16665768,1831.1,1831.0,3.68094]
[1746369489946,15.16665768,1831.1,1831.0,2.5887]
[1746369490339,1.09224,1831.0,1830.9,6.7968]
[1746369490540,13.15421768,1831.0,1830.9,6.7968]
[1746369491039,13.15421768,1831.0,1830.9,3.2078]
[1746369491246,16.84221768,1831.0,1830.9,3.2078]
[1746369494548,1.09236,1830.8,1830.7,1.94227]
[1746369494935,1.09242,1830.7,1830.6,10.40706]
[1746369495140,15.08839768,1830.7,1830.6,8.4868]
[1746369495348,6.40822,1830.7,1830.6,6.7608]
[1746369495740,15.08839768,1830.7,1830.6,6.7608]
[1746369497450,15.08839768,1830.7,1830.6,8.4873]
[1746369499952,13.46059768,1830.7,1830.6,8.4873]
[1746369500140,3.688,1830.7,1830.6,9.57978]
[1746369511353,3.688,1830.7,1830.6,8.4873]
[1746369511551,13.46059768,1830.7,1830.6,3.553]
[1746369511857,1.09249,1830.6,1830.4,11.4799472]
[1746369512053,10.36777768,1830.5,1830.4,11.4799472]
[1746369512253,11.46031768,1830.5,1830.4,7.1795772]
[1746369512454,13.11851768,1830.5,1830.4,7.1795772]
[1746369513250,16.80651768,1830.5,1830.4,7.1795772]
[1746369513962,21.80651768,1830.5,1830.4,7.1795772]
[1746369514556,16.80651768,1830.5,1830.4,7.1795772]
[1746369515857,16.80651768,1830.5,1830.4,8.2721772]
[1746369516258,16.80651768,1830.5,1830.4,1.0926]
[1746369516558,16.80651768,1830.5,1830.3,3.57201]
[1746369516757,8.68017768,1830.4,1830.3,3.57201]
[1746369517160,12.36817768,1830.4,1830.3,3.57201]
[1746369517661,3.688,1830.4,1830.3,3.57201]
[1746369519263,13.46077768,1830.4,1830.3,3.57201]
[1746369519458,16.70907768,1830.4,1830.2,7.5389]
[1746369519658,11.37743768,1830.3,1830.2,7.5389]
[1746369519853,11.37743768,1830.3,1830.2,9.1265]
[1746369520059,11.37743768,1830.3,1830.2,6.7358]
[1746369520362,15.06543768,1830.3,1830.2,6.7358]
[1746369524068,1.09282,1830.1,1829.9,8.65396]
[1746369524367,9.77299768,1830.1,1830.0,1.7257]
[1746369525261,13.46099768,1830.1,1830.0,1.7257]
[1746369525562,13.46099768,1830.1,1830.0,2.81854]
[1746369525563,12.36817768,1830.1,1830.0,2.81854]
[1746369526268,12.36817768,1830.1,1830.0,1.7257]
[1746369526568,13.46095768,1830.1,1830.0,1.7257]
[1746369527168,13.46095768,1830.1,1829.9,8.67826]
[1746369527658,13.46095768,1830.1,1830.0,1.5852]
[1746369529472,13.46095768,1830.1,1830.0,2.4237]
[1746369530563,13.46095768,1830.1,1830.0,3.51654]
[1746369530764,12.36817768,1830.1,1830.0,3.51654]
[1746369535667,3.688,1830.1,1830.0,3.51654]
[1746369536263,2.78592,1830.2,1830.0,3.51654]
[1746369536463,8.68017768,1830.1,1830.0,3.51654]
[1746369536765,11.46615768,1830.1,1830.0,2.4237]
[1746369536965,2.78598,1830.1,1830.0,2.4237]
[1746369537166,15.15415768,1830.1,1830.0,2.4237]
[1746369537672,15.15415768,1830.1,1830.0,3.51654]
[1746369537873,15.15415768,1830.1,1830.0,2.4237]
[1746369538170,15.15415768,1830.1,1830.0,1.5852]
[1746369539670,1.09284,1830.0,1829.9,6.7368]
[1746369539866,11.49551768,1830.0,1829.9,3.2078]
[1746369540271,15.18351768,1830.0,1829.9,3.2078]
[1746369540571,1.09294,1829.9,1829.7,7.60509]
[1746369540872,8.68017768,1829.8,1829.7,7.60509]
[1746369541166,12.36817768,1829.8,1829.7,7.60509]
[1746369542771,12.36817768,1829.8,1829.7,6.5121]
[1746369542972,13.46113768,1829.8,1829.7,6.5121]
[1746369543371,12.36817768,1829.8,1829.7,7.60512]
[1746369543669,13.46113768,1829.8,1829.7,6.5121]
[1746369544372,13.46113768,1829.8,1829.7,2.501]
[1746369544567,14.24523768,1829.8,1829.7,1.7068]
[1746369544875,1.09302,1829.7,1829.5,7.8309]
[1746369545172,11.48409768,1829.7,1829.6,1.09308]
[1746369545365,1.09308,1829.6,1829.5,10.22154]
[1746369545566,1.7109,1829.6,1829.5,9.1284]
[1746369546173,6.49198,1829.6,1829.5,9.1284]
[1746369547071,3.688,1829.6,1829.5,10.22154]
[1746369548074,7.07899,1829.8,1829.6,1.09303]
[1746369548268,5.986,1829.8,1829.7,3.57602]
[1746369548570,3.2078,1829.9,1829.7,3.57602]
[1746369548771,11.88797768,1829.9,1829.8,1.6795]
[1746369549071,11.88797768,1829.9,1829.8,2.4656]
[1746369549265,15.57597768,1829.9,1829.8,2.4656]
[1746369550376,12.36817768,1829.9,1829.8,2.4656]
[1746369550875,12.36817768,1829.9,1829.8,3.55856]
[1746369553075,8.68017768,1829.9,1829.8,3.55856]
[1746369553678,9.77307768,1829.9,1829.8,3.55856]
[1746369553871,8.68017768,1829.9,1829.8,3.55856]
[1746369554976,6.42955,1830.0,1829.9,1.0929]
[1746369555277,6.42955,1830.0,1829.9,2.785]
[1746369555575,15.10972768,1830.0,1829.9,1.6921]
[1746369556174,15.10972768,1830.0,1829.9,2.785]
[1746369556969,15.10972768,1830.0,1829.9,1.6921]
[1746369557564,1.09296,1829.8,1829.7,3.2078]
[1746369557769,1.09302,1829.7,1829.6,3.3814]
[1746369558075,2.83222,1829.7,1829.6,1.6705]
[1746369558266,12.35629768,1829.7,1829.6,1.6705]
[1746369558471,1.09308,1829.6,1829.5,3.53]
[1746369558777,11.44725768,1829.6,1829.5,7.83094]
[1746369559178,15.13525768,1829.6,1829.5,8.3928]
[1746369559579,15.13525768,1829.6,1829.5,5.185]
[1746369561578,15.13525768,1829.6,1829.5,6.27814]
[1746369561778,15.13525768,1829.6,1829.5,5.185]
[1746369567397,2.73287,1829.5,1829.0,1.09341]
[1746369567679,9.77354768,1829.1,1829.0,3.2692]
[1746369567882,9.77354768,1829.1,1829.0,4.36263]
[1746369568080,13.46154768,1829.1,1829.0,3.2692]
[1746369568588,12.36817768,1829.1,1829.0,4.36263]
[1746369569185,13.46154768,1829.1,1829.0,2.4759]
[1746369569485,12.36817768,1829.1,1829.0,3.56933]
[1746369570786,13.46154768,1829.1,1829.0,2.4759]
[1746369571285,12.36817768,1829.1,1829.0,3.56933]
[1746369572389,12.36817768,1829.1,1829.0,2.4759]
[1746369574187,13.46154768,1829.1,1829.0,2.4759]
[1746369575192,12.36817768,1829.1,1829.0,3.56933]
[1746369576387,13.95187768,1829.1,1829.0,3.56933]
[1746369577189,15.04524768,1829.1,1829.0,3.56933]
[1746369577390,13.95187768,1829.1,1829.0,3.56933]
[1746369578191,12.36817768,1829.1,1829.0,2.4759]
[1746369578387,3.688,1829.1,1829.0,3.56933]
[1746369579287,1.5686,1829.2,1829.1,1.09337]
[1746369579486,1.5686,1829.2,1829.1,2.82727]
[1746369579885,1.09328,1829.3,1829.2,1.09331]
[1746369580086,11.47215768,1829.3,1829.2,1.09331]
[1746369580286,10.37887768,1829.3,1829.2,1.09331]
[1746369580489,10.37887768,1829.3,1829.2,1.94461]
[1746369581089,14.06687768,1829.3,1829.2,1.94461]
[1746369584595,12.36817768,1829.3,1829.2,1.94461]
[1746369584795,3.688,1829.3,1829.2,1.94461]
[1746369585197,5.986,1829.5,1829.4,1.09319]
[1746369585395,9.77331768,1829.5,1829.3,3.9963]
[1746369585694,9.77331768,1829.5,1829.3,3.58372]
[1746369585887,9.77331768,1829.5,1829.4,1.702]
[1746369586089,9.77331768,1829.5,1829.4,2.79519]
[1746369586388,13.46131768,1829.5,1829.4,2.79519]
[1746369593898,13.46131768,1829.5,1829.4,1.702]
[1746369595504,1.09319,1829.4,1829.3,1.88171]
[1746369595697,9.77336768,1829.4,1829.3,1.88171]
[1746369595897,9.77336768,1829.4,1829.3,3.45781]
[1746369596098,13.46136768,1829.4,1829.3,3.45781]
[1746369597605,12.36817768,1829.4,1829.3,3.45781]
[1746369597906,3.688,1829.4,1829.3,3.45781]
[1746369598202,3.688,1829.4,1829.3,6.66561]
[1746369600701,3.688,1829.4,1829.3,11.66561]
[1746369601206,5.986,1829.7,1829.6,1.09308]
[1746369601406,5.986,1829.7,1829.6,4.60808]
[1746369601707,3.64088783,1829.9,1829.8,1.09296]
[1746369602399,3.64088783,1829.9,1829.8,2.75916]
[1746369604108,7.32888783,1829.9,1829.8,2.75916]
[1746369605307,9.1938,1830.1,1830.0,1.09284]
[1746369605808,17.87397768,1830.1,1830.0,1.09284]
[1746369606109,21.56197768,1830.1,1830.0,4.45084]
[1746369607305,15.57597768,1830.1,1830.0,4.45084]
[1746369609312,15.57597768,1830.1,1830.0,1.09284]
[1746369609502,17.18857768,1830.1,1830.0,1.09284]
[1746369609904,17.18857768,1830.1,1830.0,2.73874]
[1746369613513,15.57597768,1830.1,1830.0,2.73874]
[1746369621125,17.17957768,1830.1,1830.0,2.73874]
[1746369622319,12.36817768,1830.1,1830.0,2.73874]
[1746369624825,13.98247768,1830.1,1830.0,2.73874]
[1746369626123,15.07525768,1830.1,1830.0,2.73874]
[1746369626628,15.07525768,1830.1,1829.9,4.59585]
[1746369626828,11.11777768,1830.0,1829.9,4.59585]
[1746369627130,14.80577768,1830.0,1829.9,4.59585]
[1746369627329,6.1256,1830.0,1829.9,6.16715]
[1746369629932,5.3427,1830.0,1829.9,6.16715]
[1746369630526,14.02287768,1830.0,1829.9,6.16715]
[1746369630834,12.36817768,1830.0,1829.9,6.16715]
[1746369631035,3.688,1830.0,1829.9,6.16715]
[1746369631235,2.5642,1830.2,1830.1,1.09278]
[1746369631532,11.24437768,1830.2,1830.1,1.09278]
[1746369631733,8.68017768,1830.2,1830.1,1.09278]
[1746369631934,8.68017768,1830.2,1830.1,2.73898]
[1746369632135,12.36817768,1830.2,1830.1,2.73898]
[1746369632328,14.10257768,1830.2,1830.1,2.73898]
[1746369633429,14.10257768,1830.2,1830.1,1.94408]
[1746369635437,12.36817768,1830.2,1830.1,1.94408]
[1746369636238,8.68017768,1830.2,1830.1,1.94408]
[1746369636729,8.68017768,1830.2,1830.1,42.74408]
[1746369641144,3.688,1830.5,1830.4,1.0926]
[1746369641339,3.688,1830.5,1830.4,7.8004]
[1746369642033,3.688,1830.5,1830.4,8.6139]
[1746369642238,3.64088783,1830.7,1830.6,1.09248]
[1746369642543,11.06308551,1830.7,1830.6,1.09248]
[1746369642842,3.64088783,1830.7,1830.6,1.09248]
[1746369643037,3.64088783,1830.7,1830.6,5.96358]
[1746369645845,1.7012,1831.0,1830.9,1.0923]
[1746369646247,9.12339768,1831.0,1830.9,2.6809]
[1746369647145,12.81139768,1831.0,1830.9,2.6809]
[1746369650342,5.3892,1831.0,1830.9,2.6809]
[1746369650549,12.81139768,1831.0,1830.9,2.6809]
[1746369659354,11.11019768,1831.0,1830.9,2.6809]
[1746369660153,7.42219768,1831.0,1830.9,2.6809]
[1746369664152,9.1938,1831.3,1830.9,1.5886]
[1746369664357,7.42219768,1831.1,1831.0,3.57114]
[1746369665457,7.42219768,1831.1,1831.0,1.09224]
[1746369665647,8.29069768,1831.1,1831.0,1.09224]
[1746369665849,10.01269768,1831.1,1831.0,1.09224]
[1746369666049,9.14419768,1831.1,1831.0,1.6349]
[1746369666249,1.0923,1830.9,1830.8,3.499]
[1746369666452,8.51449768,1830.9,1830.8,3.499]
[1746369666652,8.51449768,1830.9,1830.7,3.2078]
[1746369666653,1.09236,1830.8,1830.7,3.2078]
[1746369666853,11.10505768,1830.8,1830.6,1.09245]
[1746369667055,8.24319768,1830.7,1830.6,1.09245]
[1746369667353,9.96519768,1830.7,1830.6,1.09245]
[1746369668355,9.96519768,1830.7,1830.5,7.05609]
[1746369668659,9.02039768,1830.6,1830.5,5.42119]
[1746369669958,9.02039768,1830.6,1830.5,7.14459]
[1746369673963,0.8685,1830.8,1830.5,11.0521]
[1746369674162,0.8063,1831.0,1830.6,5.5817]
[1746369674474,3.688,1831.1,1831.0,1.09224]
[1746369674765,11.11019768,1831.1,1831.0,1.09224]
[1746369675157,7.42219768,1831.1,1831.0,1.09224]
[1746369675364,7.42219768,1831.1,1831.0,2.81544]
[1746369675762,12.83468783,1831.3,1831.0,4.931]
[1746369675963,9.62688783,1831.3,1831.2,4.29992]
[1746369676169,7.42219768,1831.2,1831.1,6.31334]
[1746369676653,1.6269,1831.2,1831.1,6.31334]
[1746369676857,9.04909768,1831.2,1831.1,6.31334]
[1746369677164,12.73709768,1831.2,1831.1,6.31334]
[1746369678766,11.11019768,1831.2,1831.1,6.31334]
[1746369679867,12.20231768,1831.2,1831.1,5.2212]
[1746369680065,13.83261768,1831.2,1831.1,4.59018]
[1746369680259,13.83261768,1831.2,1830.9,0.8499]
[1746369680260,17.59589768,1831.2,1830.9,0.8499]
[1746369680466,1.09236,1830.8,1830.7,3.498]
[1746369680764,8.51455768,1830.8,1830.7,3.498]
[1746369681164,12.20255768,1830.8,1830.7,3.498]
[1746369681366,13.92215768,1830.8,1830.7,3.498]
[1746369681668,12.82979768,1830.8,1830.7,4.59042]
[1746369682264,11.11019768,1830.8,1830.7,4.59042]
[1746369683957,11.11019768,1830.8,1830.7,3.498]
[1746369684166,15.41039768,1830.8,1830.5,1.8912]
[1746369684463,7.42219768,1830.6,1830.5,1.8912]
[1746369684663,7.42219768,1830.7,1830.6,1.09242]
[1746369685162,3.688,1830.7,1830.6,1.09242]
[1746369685865,3.688,1830.7,1830.6,6.09242]
[1746369686265,1.5778,1831.1,1830.9,1.09225]
[1746369686464,7.42219768,1831.0,1830.9,4.59025]
[1746369686862,1.5778,1831.1,1831.0,1.09224]
[1746369687169,3.688,1831.0,1830.9,4.59025]
[1746369687466,11.11019768,1831.0,1830.9,4.59025]
[1746369687667,3.688,1831.0,1830.9,4.59025]
[1746369688166,2.66999,1831.1,1830.9,4.59025]
[1746369688367,7.42219768,1831.0,1830.9,4.59025]
[1746369688866,2.66999,1831.1,1830.9,4.59025]
[1746369689067,7.42219768,1831.0,1830.9,4.59025]
[1746369689268,5.2658,1831.1,1830.9,4.59025]
[1746369689470,7.42219768,1831.0,1830.9,4.59025]
[1746369690257,5.2658,1831.1,1830.9,4.59025]
[1746369690463,7.42219768,1831.0,1830.9,4.59025]
[1746369690962,5.2658,1831.1,1830.9,4.59025]
[1746369691158,7.42219768,1831.0,1830.9,4.59025]
[1746369691469,8.99999768,1831.1,1831.0,1.09224]
[1746369691666,8.99999768,1831.1,1831.0,1.93444]
[1746369693670,8.99999768,1831.1,1831.0,0.8422]
[1746369693975,1.09224,1831.0,1830.9,3.498]
[1746369694275,13.79333768,1831.0,1830.9,3.498]
[1746369694474,1.09242,1830.7,1830.6,10.6765772]
[1746369694660,8.51461768,1830.7,1830.6,10.6765772]
[1746369695063,12.20261768,1830.7,1830.6,11.7690572]
[1746369695269,12.20261768,1830.7,1830.6,10.6765772]
[1746369695469,12.70109768,1830.7,1830.6,11.7690572]
[1746369696375,13.79351768,1830.7,1830.6,10.6765772]
[1746369696674,13.79351768,1830.7,1830.6,11.7690572]
[1746369697379,12.70109768,1830.7,1830.6,11.7690572]
[1746369697878,12.70109768,1830.7,1830.6,4.58948]
[1746369698769,12.70109768,1830.7,1830.6,3.497]
[1746369698976,13.79351768,1830.7,1830.6,3.497]
[1746369699476,12.70109768,1830.7,1830.6,4.58948]
[1746369699680,12.70109768,1830.7,1830.6,3.497]
[1746369699681,13.79351768,1830.7,1830.6,3.497]
[1746369700578,12.70109768,1830.7,1830.6,4.58948]
[1746369701078,13.79351768,1830.7,1830.6,3.497]
[1746369702482,18.64000768,1830.7,1830.3,3.497]
[1746369702782,1.09258,1830.5,1830.3,4.58966]
[1746369702983,9.14759768,1830.4,1830.3,6.31996]
[1746369703282,7.42219768,1830.4,1830.3,7.79746]
[1746369703579,5.4134,1830.5,1830.4,1.0926]
[1746369704476,7.42219768,1830.4,1830.3,7.79741]
[1746369705381,7.42219768,1830.4,1830.3,6.7048]
[1746369705582,10.18339768,1830.4,1830.3,6.7048]
[1746369705882,11.01309768,1830.4,1830.3,6.7048]
[1746369706084,14.70109768,1830.4,1830.3,6.7048]
[1746369707277,14.70109768,1830.4,1830.3,3.2078]
[1746369707483,1.09284,1830.0,1829.9,7.1795772]
[1746369707684,8.51503768,1830.0,1829.9,7.1795772]
[1746369708180,12.20303768,1830.0,1829.9,7.1795772]
[1746369708579,14.71003768,1830.0,1829.9,7.1795772]
[1746369708883,1.0929,1829.9,1829.8,3.498]
[1746369709084,13.88099768,1829.9,1829.8,3.498]
[1746369709387,5.3659,1829.9,1829.8,4.59096]
[1746369709883,6.4588,1829.9,1829.8,4.59096]
[1746369710086,5.3659,1829.9,1829.8,4.59096]
[1746369710283,6.4588,1829.9,1829.8,4.59096]
[1746369710487,5.3659,1829.9,1829.8,4.59096]
[1746369710684,12.78809768,1829.9,1829.8,4.59096]
[1746369710891,13.88099768,1829.9,1829.8,4.59096]
[1746369711083,13.88099768,1829.9,1829.8,3.498]
[1746369715087,12.20309768,1829.9,1829.8,3.498]
[1746369715288,12.20309768,1829.9,1829.8,4.2946]
[1746369715795,13.81189768,1829.9,1829.8,4.2946]
[1746369719197,12.20309768,1829.9,1829.8,5.38756]
[1746369719501,12.20309768,1829.9,1829.8,4.2946]
[1746369720696,13.83839768,1829.9,1829.8,5.38756]
[1746369721396,12.20309768,1829.9,1829.8,5.38756]
[1746369721798,12.20309768,1829.9,1829.8,6.20316]
[1746369722601,3.688,1829.9,1829.8,6.20316]
[1746369722796,3.688,1829.9,1829.8,7.93936]
[1746369723100,1.09286,1830.0,1829.9,1.0929]
[1746369723298,1.09286,1830.0,1829.9,2.7404]
[1746369723500,1.09281,1830.1,1829.9,2.7404]
[1746369723701,1.09281,1830.1,1830.0,2.74034]
[1746369723902,7.42219768,1830.1,1830.0,1.6475]
[1746369724103,12.20297768,1830.1,1830.0,2.74034]
[1746369725003,11.11019768,1830.1,1830.0,2.74034]
[1746369726600,12.20297768,1830.1,1830.0,2.74034]
[1746369726803,11.11019768,1830.1,1830.0,2.74034]
[1746369728803,3.688,1830.1,1830.0,5.94814]
[1746369729109,5.986,1830.3,1830.2,1.09272]
[1746369729300,13.40819768,1830.3,1830.2,1.09272]
[1746369729500,13.40819768,1830.3,1830.2,2.71982]
[1746369729701,5.986,1830.3,1830.2,5.92762]
[1746369731310,1.6257,1830.6,1830.5,1.09254]
[1746369731703,9.04789768,1830.6,1830.5,1.09254]
[1746369731905,7.42219768,1830.6,1830.5,2.71964]
[1746369732213,11.11019768,1830.6,1830.5,2.71964]
[1746369733309,3.688,1830.6,1830.5,2.71964]
[1746369733498,11.11019768,1830.6,1830.5,2.71964]
[1746369733698,11.11019768,1830.6,1830.5,6.21764]
[1746369733904,3.688,1830.6,1830.5,6.21764]
[1746369735310,2.69517,1830.8,1830.6,1.09244]
[1746369735505,7.42219768,1830.7,1830.6,2.70024]
[1746369736213,11.11019768,1830.7,1830.6,2.70024]
[1746369741307,11.11019768,1830.7,1830.6,5.90804]
[1746369741308,3.688,1830.7,1830.6,5.90804]
[1746369742117,1.7106,1830.8,1830.7,1.09242]
[1746369742316,7.42219768,1830.7,1830.6,1.09244]
[1746369742613,7.42219768,1830.7,1830.6,2.80004]
[1746369743116,11.11019768,1830.7,1830.6,2.80004]
[1746369745417,3.688,1830.7,1830.6,2.80004]
[1746369746119,1.7106,1830.8,1830.7,1.09242]
[1746369746418,1.7106,1830.8,1830.7,4.42262]
[1746369747119,5.3986,1830.8,1830.7,4.42262]
[1746369752321,12.82079768,1830.8,1830.7,4.42262]
[1746369752521,1.09244,1830.7,1830.6,1.09246]
[1746369752722,7.42219768,1830.7,1830.6,1.09246]
[1746369752922,3.688,1830.8,1830.7,1.09242]
[1746369753117,1.7168,1830.9,1830.8,1.09236]
[1746369753324,9.13899768,1830.9,1830.8,1.09236]
[1746369753723,9.13899768,1830.9,1830.8,2.81346]
[1746369754119,12.82699768,1830.9,1830.8,2.81346]
[1746369755523,12.82699768,1830.9,1830.8,6.31046]
[1746369756520,11.11019768,1830.9,1830.8,6.31046]
[1746369756824,3.688,1830.9,1830.8,6.31046]
[1746369758227,2.5825,1831.1,1831.0,1.09224]
[1746369758725,10.00469768,1831.1,1831.0,1.09224]
[1746369759028,10.00469768,1831.1,1830.9,2.4236]
[1746369759029,11.09689768,1831.1,1830.9,2.4236]
[1746369759226,9.15569768,1831.0,1830.9,3.5159]
[1746369760025,10.24797768,1831.0,1830.8,4.58931]
[1746369760228,10.19709768,1830.9,1830.8,3.497]
[1746369760524,9.10479768,1830.9,1830.8,4.58936]
[1746369760718,3.688,1831.0,1830.9,1.0923]
[1746369760925,3.688,1831.0,1830.9,3.5759]
[1746369761124,11.11019768,1831.0,1830.9,3.5759]
[1746369762018,12.79279768,1831.0,1830.9,3.5759]
[1746369764025,3.688,1831.0,1830.9,3.5759]
[1746369765630,3.688,1831.0,1830.9,6.7837]
[1746369766223,1.5934,1831.3,1830.9,6.7837]
[1746369766416,7.42219768,1831.2,1831.1,1.09218]
[1746369766632,7.42219768,1831.2,1831.1,4.58818]
[1746369767128,11.11019768,1831.2,1831.1,4.58818]
[1746369768023,3.688,1831.2,1831.1,4.58818]
[1746369768224,3.688,1831.2,1831.1,7.79598]
[1746369770231,3.2428,1831.4,1831.3,1.09206]
[1746369770727,10.66499768,1831.4,1831.2,0.8341]
[1746369771026,10.66499768,1831.4,1831.3,1.09206]
[1746369771332,13.78649768,1831.4,1831.3,1.93256]
[1746369771532,13.78649768,1831.4,1831.3,0.8405]
[1746369772134,1.09206,1831.3,1831.1,7.79593]
[1746369772431,7.42219768,1831.2,1831.1,7.79593]
[1746369772731,7.42219768,1831.2,1831.1,4.29993]
[1746369772933,9.08799768,1831.2,1831.1,7.79593]
[1746369773230,13.56629768,1831.2,1831.1,7.79593]
[1746369775431,13.56629768,1831.2,1831.1,8.58883]
[1746369776135,12.77599768,1831.2,1831.1,8.58883]
[1746369776537,11.11019768,1831.2,1831.1,8.58883]
[1746369777236,12.83299768,1831.2,1831.1,8.58883]
[1746369778744,12.83299768,1831.2,1831.1,5.38103]
[1746369779138,13.92511768,1831.2,1831.1,5.38103]
[1746369779329,13.62639768,1831.2,1831.1,3.496]
[1746369779533,14.71851768,1831.2,1831.1,3.496]
[1746369779733,14.71851768,1831.2,1831.1,4.58818]
[1746369780042,1.0922,1831.1,1830.9,4.0568]
[1746369780237,2.66118,1831.1,1831.0,3.496]
[1746369780639,10.08337768,1831.1,1831.0,3.496]
[1746369781235,13.77137768,1831.1,1831.0,3.496]
[1746369781436,13.77137768,1831.1,1831.0,4.58824]
[1746369781437,12.67919768,1831.1,1831.0,4.58824]
[1746369781637,13.77137768,1831.1,1831.0,3.496]
[1746369782041,12.67919768,1831.1,1831.0,4.58824]
[1746369782846,11.11019768,1831.1,1831.0,4.58824]
[1746369783046,11.11019768,1831.1,1831.0,6.18444]
[1746369784447,12.20237768,1831.1,1831.0,5.0922]
[1746369784644,12.69369768,1831.1,1831.0,6.18444]
[1746369785238,9.00569768,1831.1,1831.0,6.18444]
[1746369785442,1.5835,1831.1,1831.0,6.18444]
[1746369786344,0.7934,1831.2,1831.1,1.09218]
[1746369786549,3.46902,1831.2,1831.1,1.594]
[1746369786751,10.89121768,1831.2,1831.1,1.594]
[1746369787151,13.48709768,1831.2,1831.1,2.68618]
[1746369787751,14.57921768,1831.2,1831.1,2.68618]
[1746369788651,14.57921768,1831.2,1831.1,1.594]
[1746369791052,14.57921768,1831.2,1831.1,2.68618]
[1746369791254,13.48709768,1831.2,1831.1,2.68618]
[1746369791650,13.48709768,1831.2,1831.1,4.34448]
[1746369792151,14.57921768,1831.2,1831.1,4.34448]
[1746369793357,14.57921768,1831.2,1831.1,3.2523]
[1746369793558,1.09218,1831.1,1831.0,3.496]
[1746369793852,10.14227768,1831.1,1831.0,3.496]
[1746369794050,2.72008,1831.1,1831.0,3.496]
[1746369794243,6.40808,1831.1,1831.0,4.58824]
[1746369794448,13.83027768,1831.1,1831.0,4.58824]
[1746369798561,13.83027768,1831.1,1831.0,6.28234]
[1746369799657,12.73809768,1831.1,1831.0,6.28234]
[1746369800355,5.3159,1831.1,1831.0,6.28234]
[1746369800545,12.73809768,1831.1,1831.0,6.28234]
[1746369802060,11.11019768,1831.1,1831.0,6.28234]
[1746369802653,1.0923,1830.9,1830.8,3.2078]
[1746369802858,1.09236,1830.8,1830.7,11.7669972]
[1746369803056,10.08075768,1830.8,1830.7,13.4958972]
[1746369803653,10.08075768,1830.8,1830.7,12.4034772]
[1746369804163,12.67639768,1830.8,1830.7,13.4958972]
[1746369804463,12.67639768,1830.8,1830.7,12.4034772]
[1746369804661,12.67639768,1830.8,1830.7,13.4958972]
[1746369805363,8.98839768,1830.8,1830.7,13.4958972]
[1746369805552,10.08075768,1830.8,1830.7,12.4034772]
[1746369806263,13.76875768,1830.8,1830.7,12.4034772]
[1746369806661,12.67639768,1830.8,1830.7,13.4958972]
[1746369807162,12.67639768,1830.8,1830.7,6.31632]
[1746369808869,13.76875768,1830.8,1830.7,5.2239]
[1746369811071,13.76875768,1830.8,1830.7,3.495]
[1746369812670,13.76875768,1830.8,1830.7,4.58742]
[1746369813062,13.76875768,1830.8,1830.7,3.495]
[1746369815978,1.09242,1830.7,1830.6,6.0631]
[1746369816169,13.93001768,1830.7,1830.6,6.0631]
[1746369816367,6.50782,1830.7,1830.6,6.0631]
[1746369816977,6.50782,1830.7,1830.6,7.15558]
[1746369817578,6.50782,1830.7,1830.6,6.0631]
[1746369818778,13.93001768,1830.7,1830.6,6.0631]
[1746369819781,13.93001768,1830.7,1830.6,7.15558]
[1746369820285,13.93001768,1830.7,1830.6,6.0631]
[1746369820477,12.20261768,1830.7,1830.6,7.15558]
[1746369820976,12.20261768,1830.7,1830.6,6.0631]
[1746369821177,3.688,1830.7,1830.6,7.15558]
[1746369821377,4.78042,1830.7,1830.6,7.15558]
[1746369821679,3.688,1830.7,1830.6,7.15558]
[1746369823386,11.11019768,1830.7,1830.6,7.15558]
[1746369826990,12.20261768,1830.7,1830.6,7.15558]
[1746369827789,11.11019768,1830.7,1830.6,7.15558]
[1746369830292,12.20261768,1830.7,1830.6,6.0631]
[1746369830491,12.20261768,1830.7,1830.6,7.15558]
[1746369830889,12.20261768,1830.7,1830.6,6.30098]
[1746369831092,13.86381768,1830.7,1830.6,6.30098]
[1746369831291,13.86381768,1830.7,1830.6,5.2085]
[1746369832189,13.86381768,1830.7,1830.6,3.496]
[1746369833478,1.09248,1830.6,1830.5,3.2078]
[1746369833786,1.0926,1830.4,1830.3,6.7028]
[1746369834091,12.20279768,1830.4,1830.3,6.7028]
[1746369834790,13.86009768,1830.4,1830.3,6.7028]
[1746369835893,13.86009768,1830.4,1830.3,7.79546]
[1746369836094,12.76749768,1830.4,1830.3,11.11446]
[1746369836393,13.86009768,1830.4,1830.3,11.11446]
[1746369836593,15.55639768,1830.4,1830.3,10.0218]
[1746369838298,15.55639768,1830.4,1830.3,9.1891]
[1746369839097,15.55639768,1830.4,1830.3,8.3347]
[1746369840698,15.55639768,1830.4,1830.3,9.42736]
[1746369840898,15.55639768,1830.4,1830.3,6.21956]
[1746369841501,15.55639768,1830.4,1830.3,5.1269]
[1746369841897,15.55639768,1830.4,1830.3,6.21956]
[1746369842097,15.55639768,1830.4,1830.3,5.1269]
[1746369842402,15.55639768,1830.4,1830.3,6.21956]
[1746369842595,15.55639768,1830.4,1830.3,5.1269]
[1746369847002,15.55639768,1830.4,1830.3,6.21956]
[1746369847304,3.688,1830.4,1830.3,14.42736]
[1746369848207,7.07849,1830.6,1830.4,1.09254]
[1746369848403,14.50068768,1830.6,1830.5,1.6546]
[1746369849215,18.18868768,1830.6,1830.5,1.6546]
[1746369850415,18.18868768,1830.6,1830.5,2.74714]
[1746369850716,3.688,1830.6,1830.5,2.74714]
[1746369850915,3.688,1830.6,1830.5,5.95494]
[1746369851410,4.78048,1830.6,1830.5,5.95494]
[1746369851819,3.688,1830.6,1830.5,5.95494]
[1746369853619,3.688,1830.6,1830.5,4.8624]
[1746369853813,3.688,1830.6,1830.5,5.95494]
[1746369857121,5.90129,1830.8,1830.6,1.09242]
[1746369857320,5.90129,1830.8,1830.7,2.4254]
[1746369857520,11.72238768,1830.8,1830.7,3.219]
[1746369858124,15.41038768,1830.8,1830.7,3.219]
[1746369859019,15.41038768,1830.8,1830.7,4.31142]